{"text_format":"1","workbook":"xlsx","n_sheets":3,"sheets":["COR","TXT","Feuil3"],"not_rendered":{"charts":0,"images":0,"macros":1,"external_links":0,"defined_names":0,"comments":0,"pivot_tables":0},"unopened":[],"bounds":{"document_bytes":16777216,"sheet_cells":100000,"rows_first":2000,"rows_last":500,"rows_between":2000,"halvings":0,"cell_chars":16384,"cell_head_chars":4096},"cells_cut":0,"cells_raw":0,"read":"whole","date_system":"1900"}

{"sheet":"COR","index":0,"n_rows":25,"n_cols":14,"rows_kept":25,"cut":false,"hidden":false,"merged":[]}
["A1",null,null,"Nom"," Prénom",null,"ID",null,null,null,null,null,"Formule Concaténation","Formule Concaténation"]
["A2",null,null,"Nom1"," Prénom1",null,"ID1","res1",null,null,null,null,"Nom1  Prénom1 ID1",{"$f":"D2&\" \"&E2&\" \"&G2","v":"Nom1  Prénom1 ID1"}]
["A3",null,null,"Nom2"," Prénom2",null,"ID2","res2",null,null,null,null,"Nom2  Prénom2 ID2",{"$f":"D3&\" \"&E3&\" \"&G3","v":"Nom2  Prénom2 ID2"}]
["A4",null,null,"Nom3"," Prénom3",null,"ID3",null,null,null,null,null,"Nom3  Prénom3 ID3","Nom3  Prénom3 ID3"]
["A5",null,null,"Nom4"," Prénom4",null,"ID4","res4",null,null,null,null,"Nom4  Prénom4 ID4","Nom4  Prénom4 ID4"]
["A6",null,null,"Nom5"," Prénom5",null,"ID5","res5",null,null,null,null,"Nom5  Prénom5 ID5","Nom5  Prénom5 ID5"]
["A7",null,null,"Nom6"," Prénom6",null,"ID6","res6",null,null,null,null,"Nom6  Prénom6 ID6","Nom6  Prénom6 ID6"]
["A8",null,null,"Nom29"," Prénom29",null,"ID29","res19",null,null,null,null,"Nom29  Prénom29 ID29","Nom29  Prénom29 ID29"]
["A9",null,null,"Nom8"," Prénom8",null,"ID8","res8",null,null,null,null,"Nom8  Prénom8 ID8","Nom8  Prénom8 ID8"]
["A10",null,null,"Nom9"," Prénom9",null,"ID9","res9",null,null,null,null,"Nom9  Prénom9 ID9","Nom9  Prénom9 ID9"]
["A11",null,null,"Nom10"," Prénom10",null,"ID10","res10",null,null,null,null,"Nom10  Prénom10 ID10","Nom10  Prénom10 ID10"]
["A12",null,null,"Nom11"," Prénom11",null,"ID11","res11",null,null,null,null,"Nom11  Prénom11 ID11","Nom11  Prénom11 ID11"]
["A13",null,null,"Nom45"," Prénom45",null,"ID45","res45",null,null,null,null,"Nom45  Prénom45 ID45","Nom45  Prénom45 ID45"]
["A14",null,null,"Nom13"," Prénom13",null,"ID13","res13",null,null,null,null,"Nom13  Prénom13 ID13","Nom13  Prénom13 ID13"]
["A15",null,null,"Nom14"," Prénom14",null,"ID14","res14",null,null,null,null,"Nom14  Prénom14 ID14","Nom14  Prénom14 ID14"]
["A16",null,null,"Nom15"," Prénom15",null,"ID15",null,null,null,null,null,"Nom15  Prénom15 ID15","Nom15  Prénom15 ID15"]
["A17",null,null,"Nom16"," Prénom16",null,"ID16","res16",null,null,null,null,"Nom16  Prénom16 ID16","Nom16  Prénom16 ID16"]
["A18",null,null,"Nom38"," Prénom38",null,"ID38","res38",null,null,null,null,"Nom38  Prénom38 ID38","Nom38  Prénom38 ID38"]
["A19",null,null,"Nom18"," Prénom18",null,"ID18","res18",null,null,null,null,"Nom18  Prénom18 ID18","Nom18  Prénom18 ID18"]
["A20",null,null,"Nom19"," Prénom19",null,"ID19",null,null,null,null,null,"Nom19  Prénom19 ID19","Nom19  Prénom19 ID19"]
["A21",null,null,"Nom20"," Prénom20",null,"ID20","res20",null,null,null,null,"Nom20  Prénom20 ID20","Nom20  Prénom20 ID20"]
["A22",null,null,"Nom52"," Prénom52",null,"ID52","res52",null,null,null,null,"Nom52  Prénom52 ID52","Nom52  Prénom52 ID52"]
["A23",null,null,"Nom22"," Prénom22",null,"ID22","res22",null,null,null,null,"Nom22  Prénom22 ID22","Nom22  Prénom22 ID22"]
["A24",null,null,"Nom23"," Prénom23",null,"ID23","res23",null,null,null,null,"Nom23  Prénom23 ID23","Nom23  Prénom23 ID23"]
["A25",null,null,"Nom24"," Prénom24",null,"ID24",null,null,null,null,null,"Nom24  Prénom24 ID24","Nom24  Prénom24 ID24"]

{"sheet":"TXT","index":1,"n_rows":25,"n_cols":26,"rows_kept":25,"cut":false,"hidden":false,"merged":[]}
[null,"Nom"," Prénom","ID",null,null,null,null,null,null,null,null,null,null,null,null,null,null,null,null,null,null,null,null,"Formule Concaténation","Formule Concaténation"]
[null,"Nom1"," Prénom1","ID1","res1",null,null,null,null,null,null,null,null,null,null,null,null,null,null,null,null,null,null,null,{"$f":"B2&\" \"&C2&\" \"&D2","v":"Nom1  Prénom1 ID1"},"Nom1  Prénom1 ID1"]
[null,"Nom2"," Prénom2","ID2","res2",null,null,null,null,null,null,null,null,null,null,null,null,null,null,null,null,null,null,null,{"$f":"B3&\" \"&C3&\" \"&D3","v":"Nom2  Prénom2 ID2"},"Nom2  Prénom2 ID2"]
[null,"Nom52"," Prénom52","ID52","res52",null,null,null,null,null,null,null,null,null,null,null,null,null,null,null,null,null,null,null,"Nom52  Prénom52 ID52","Nom52  Prénom52 ID52"]
[null,"Nom4"," Prénom4","ID4","res4",null,null,null,null,null,null,null,null,null,null,null,null,null,null,null,null,null,null,null,"Nom4  Prénom4 ID4","Nom4  Prénom4 ID4"]
[null,"Nom5"," Prénom5","ID5","res5",null,null,null,null,null,null,null,null,null,null,null,null,null,null,null,null,null,null,null,"Nom5  Prénom5 ID5","Nom5  Prénom5 ID5"]
[null,"Nom6"," Prénom6","ID6","res6",null,null,null,null,null,null,null,null,null,null,null,null,null,null,null,null,null,null,null,"Nom6  Prénom6 ID6","Nom6  Prénom6 ID6"]
[null,"Nom7"," Prénom7","ID7","res7",null,null,null,null,null,null,null,null,null,null,null,null,null,null,null,null,null,null,null,"Nom7  Prénom7 ID7","Nom7  Prénom7 ID7"]
[null,"Nom8"," Prénom8","ID8","res8",null,null,null,null,null,null,null,null,null,null,null,null,null,null,null,null,null,null,null,"Nom8  Prénom8 ID8","Nom8  Prénom8 ID8"]
[null,"Nom9"," Prénom9","ID9","res9",null,null,null,null,null,null,null,null,null,null,null,null,null,null,null,null,null,null,null,"Nom9  Prénom9 ID9","Nom9  Prénom9 ID9"]
[null,"Nom10"," Prénom10","ID10","res10",null,null,null,null,null,null,null,null,null,null,null,null,null,null,null,null,null,null,null,"Nom10  Prénom10 ID10","Nom10  Prénom10 ID10"]
[null,"Nom11"," Prénom11","ID11","res11",null,null,null,null,null,null,null,null,null,null,null,null,null,null,null,null,null,null,null,"Nom11  Prénom11 ID11","Nom11  Prénom11 ID11"]
[null,"Nom12"," Prénom12","ID12","res12",null,null,null,null,null,null,null,null,null,null,null,null,null,null,null,null,null,null,null,"Nom12  Prénom12 ID12","Nom12  Prénom12 ID12"]
[null,"Nom13"," Prénom13","ID13","res13",null,null,null,null,null,null,null,null,null,null,null,null,null,null,null,null,null,null,null,"Nom13  Prénom13 ID13","Nom13  Prénom13 ID13"]
[null,"Nom14"," Prénom14","ID14","res14",null,null,null,null,null,null,null,null,null,null,null,null,null,null,null,null,null,null,null,"Nom14  Prénom14 ID14","Nom14  Prénom14 ID14"]
[null,"Nom45"," Prénom45","ID45","res45",null,null,null,null,null,null,null,null,null,null,null,null,null,null,null,null,null,null,null,"Nom45  Prénom45 ID45","Nom45  Prénom45 ID45"]
[null,"Nom16"," Prénom16","ID16","res16",null,null,null,null,null,null,null,null,null,null,null,null,null,null,null,null,null,null,null,"Nom16  Prénom16 ID16","Nom16  Prénom16 ID16"]
[null,"Nom17"," Prénom17","ID17","res17",null,null,null,null,null,null,null,null,null,null,null,null,null,null,null,null,null,null,null,"Nom17  Prénom17 ID17","Nom17  Prénom17 ID17"]
[null,"Nom18"," Prénom18","ID18","res18",null,null,null,null,null,null,null,null,null,null,null,null,null,null,null,null,null,null,null,"Nom18  Prénom18 ID18","Nom18  Prénom18 ID18"]
[null,"Nom29"," Prénom29","ID29","res19",null,null,null,null,null,null,null,null,null,null,null,null,null,null,null,null,null,null,null,"Nom29  Prénom29 ID29","Nom29  Prénom29 ID29"]
[null,"Nom20"," Prénom20","ID20","res20",null,null,null,null,null,null,null,null,null,null,null,null,null,null,null,null,null,null,null,"Nom20  Prénom20 ID20","Nom20  Prénom20 ID20"]
[null,"Nom21"," Prénom21","ID21","res21",null,null,null,null,null,null,null,null,null,null,null,null,null,null,null,null,null,null,null,"Nom21  Prénom21 ID21","Nom21  Prénom21 ID21"]
[null,"Nom22"," Prénom22","ID22","res22",null,null,null,null,null,null,null,null,null,null,null,null,null,null,null,null,null,null,null,"Nom22  Prénom22 ID22","Nom22  Prénom22 ID22"]
[null,"Nom23"," Prénom23","ID23","res23",null,null,null,null,null,null,null,null,null,null,null,null,null,null,null,null,null,null,null,"Nom23  Prénom23 ID23","Nom23  Prénom23 ID23"]
[null,"Nom38"," Prénom38","ID38","res38",null,null,null,null,null,null,null,null,null,null,null,null,null,null,null,null,null,null,null,"Nom38  Prénom38 ID38","Nom38  Prénom38 ID38"]

{"sheet":"Feuil3","index":2,"n_rows":0,"n_cols":0,"rows_kept":0,"cut":false,"hidden":false,"merged":[]}